fUST/lending_fUST_20240323
["ID","MTS","AMOUNT","RATE_DAILY","PERIOD"]
[320063144,1711127438735,-290.32753414,0.00025698,2]
[320063145,1711127438744,-284.43540265,0.00025698,2]
[320063146,1711127438753,-3142.73928404,0.00025698,2]
[320063147,1711127438762,-5426.75074665,0.00025698,7]
[320063148,1711127438771,-250.0,0.00025698,2]
[320063149,1711127438780,-154.87609812,0.00025698,2]
[320063150,1711127438789,-455.05544217,0.00025698,2]
[320063151,1711127438798,-3995.79001961,0.00025698,2]
[320063152,1711127438807,-1000.30590547,0.00025698,2]
[320063153,1711127438816,-151.80276999,0.00025698,2]
[320063154,1711127438825,-151.80276999,0.00025698,2]
[320063155,1711127438837,-500.0,0.00025705,2]
[320063156,1711127438845,-5079.88695154,0.00025715,2]
[320063157,1711127438854,-615.37638664,0.00025715,2]
[320063158,1711127438863,-300.52228676,0.00025715,2]
[320063159,1711127438872,-309.75219824,0.00025715,2]
[320063160,1711127438881,-232.99241824,0.00025715,2]
[320063161,1711127438890,-783.57894867,0.00025715,2]
[320063162,1711127438899,-281.46635872,0.00025715,2]
[320063163,1711127438907,-683.0140826,0.00025716,2]
[320063164,1711127438916,-260.72306745,0.00025716,2]
[320063165,1711127438925,-232.10581655,0.00025716,2]
[320063166,1711127438934,-536.74858651,0.00025716,2]
[320063167,1711127438943,-162.35925326,0.00025716,2]
[320063168,1711127438952,-423.98537172,0.00025716,2]
[320063169,1711127438961,-478.88123002,0.00025716,2]
[320063170,1711127438971,-500.0,0.00025716,2]
[320063171,1711127438980,-500.0,0.00025716,2]
[320063172,1711127438989,-500.0,0.00025716,2]
[320063173,1711127438998,-1575.2,0.00025716,2]
[320063174,1711127439007,-1570.14224023,0.00025717,2]
[320063175,1711127439016,-202.96515959,0.00025717,2]
[320063176,1711127439026,-192.19720625,0.00025717,2]
[320063177,1711127439035,-500.0,0.00025717,2]
[320063178,1711127439045,-500.0,0.00025717,2]
[320063179,1711127439055,-500.0,0.00025717,2]
[320063181,1711127439065,-500.0,0.00025717,2]
[320063183,1711127439074,-294.47,0.00025717,2]
[320063184,1711127439086,-500.0,0.00025717,2]
[320063186,1711127439095,-500.0,0.00025717,2]
[320063188,1711127439104,-500.0,0.00025717,2]
[320063189,1711127439114,-500.0,0.00025717,2]
[320063190,1711127439123,-626.60944168,0.00025717,2]
[320063191,1711127439132,-500.0,0.00025717,2]
[320063192,1711127439141,-500.0,0.00025717,2]
[320063193,1711127439151,-500.0,0.00025717,2]
[320063194,1711127439160,-500.0,0.00025717,2]
[320063195,1711127439169,-803.67,0.00025717,2]
[320063196,1711127439179,-581.2,0.00025717,2]
[320063197,1711127439188,-500.0,0.00025717,2]
[320063198,1711127439199,-500.0,0.00025717,2]
[320063199,1711127439213,-500.0,0.00025717,2]
[320063200,1711127439223,-500.0,0.00025717,2]
[320063201,1711127439232,-500.0,0.00025717,2]
[320063203,1711127439243,-500.0,0.00025717,2]
[320063204,1711127439252,-500.0,0.00025717,2]
[320063206,1711127439261,-500.0,0.00025717,2]
[320063208,1711127439271,-500.0,0.00025717,2]
[320063209,1711127439280,-500.0,0.00025717,2]
[320063211,1711127439290,-500.0,0.00025717,2]
[320063212,1711127439299,-502.34938608,0.00025717,2]
[320063213,1711127439309,-500.0,0.00025717,2]
[320063214,1711127439318,-500.0,0.00025717,2]
[320063215,1711127439327,-500.0,0.00025717,2]
[320063216,1711127439339,-500.0,0.00025717,2]
[320063217,1711127439348,-500.0,0.00025717,2]
[320063218,1711127439358,-1603.44,0.00025717,2]
[320063219,1711127439367,-500.0,0.00025717,2]
[320063220,1711127439376,-500.0,0.00025717,2]
[320063221,1711127439385,-500.0,0.00025717,2]
[320063222,1711127439394,-500.0,0.00025717,2]
[320063223,1711127439404,-500.0,0.00025717,2]
[320063224,1711127439413,-500.0,0.00025717,2]
[320063225,1711127439422,-500.0,0.00025717,2]
[320063226,1711127439431,-500.0,0.00025717,2]
[320063227,1711127439440,-500.0,0.00025717,2]
[320063228,1711127439449,-500.0,0.00025717,2]
[320063229,1711127439458,-8293.87,0.00025717,2]
[320063230,1711127439468,-500.0,0.00025717,2]
[320063231,1711127439477,-500.0,0.00025717,2]
[320063232,1711127439486,-500.0,0.00025717,2]
[320063233,1711127439494,-709.52,0.00025717,2]
[320063234,1711127439504,-3279.55,0.00025717,2]
[320063235,1711127439513,-1000.0,0.00025717,2]
[320063236,1711127439522,-500.0,0.00025717,2]
[320063237,1711127439531,-500.0,0.00025717,2]
[320063238,1711127439540,-5009.74,0.00025717,2]
[320063239,1711127439549,-1471.5,0.00025717,2]
[320063240,1711127439559,-2580.71,0.00025717,2]
[320063241,1711127439568,-500.0,0.00025717,2]
[320063242,1711127439579,-626.97051343,0.00025717,2]
[320063243,1711127439590,-4599.75,0.00025717,2]
[320063244,1711127439600,-500.0,0.00025717,2]
[320063245,1711127439609,-1878.85,0.00025717,2]
[320063246,1711127439619,-1977.53,0.00025717,2]
[320063247,1711127439628,-500.0,0.00025717,2]
[320063248,1711127439637,-368.83574321,0.00025717,2]
[320063249,1711127439646,-845.31,0.00025717,2]
[320063250,1711127439655,-500.0,0.00025717,2]
[320063251,1711127439664,-500.0,0.00025717,2]
[320063252,1711127439674,-2067.58,0.00025717,2]
[320063253,1711127439683,-20697.06,0.00025717,2]
[320063254,1711127439694,-500.85141942,0.00025717,2]
[320063255,1711127439703,-500.0,0.00025717,2]
[320063256,1711127439713,-500.0,0.00025717,2]
[320063257,1711127439723,-500.0,0.00025717,2]
[320063258,1711127439732,-500.0,0.00025717,2]
[320063259,1711127439741,-500.0,0.00025717,2]
[320063260,1711127439750,-500.0,0.00025717,2]
[320063261,1711127439759,-500.0,0.00025717,2]
[320063262,1711127439770,-261.36262508,0.00025717,2]
[320063263,1711127439780,-731.69,0.00025717,2]
[320063264,1711127439790,-500.0,0.00025717,2]
[320063265,1711127439799,-154.84515485,0.00025717,2]
[320063266,1711127439810,-1574.97,0.00025717,2]
[320063267,1711127439821,-518.74,0.00025717,2]
[320063268,1711127439830,-500.0,0.00025717,2]
[320063269,1711127439840,-500.0,0.00025717,2]
[320063270,1711127439849,-500.0,0.00025717,2]
[320063271,1711127439859,-750.63,0.00025717,2]
[320063272,1711127439869,-500.0,0.00025717,2]
[320063273,1711127439878,-743.38,0.00025717,2]
[320063274,1711127439887,-1089.16,0.00025717,2]
[320063275,1711127439896,-24132.96,0.00025717,2]
[320063276,1711127439905,-500.0,0.00025717,2]
[320063277,1711127439914,-500.0,0.00025717,2]
[320063278,1711127439923,-500.0,0.00025717,2]
[320063279,1711127439933,-4230.63,0.00025717,2]
[320063280,1711127439942,-151.0,0.00025717,2]
[320063281,1711127439952,-500.0,0.00025717,2]
[320063282,1711127439962,-5577.93,0.00025717,2]
[320063283,1711127439971,-500.0,0.00025717,2]
[320063284,1711127439981,-500.0,0.00025717,2]
[320063285,1711127439991,-1973.23,0.00025717,2]
[320063286,1711127440001,-629.77,0.00025717,2]
[320063287,1711127440011,-500.0,0.00025717,2]
[320063288,1711127440020,-500.0,0.00025717,2]
[320063291,1711127440034,-500.0,0.00025717,2]
[320063292,1711127440043,-500.0,0.00025717,2]
[320063294,1711127440053,-500.0,0.00025717,2]
[320063296,1711127440063,-500.0,0.00025717,2]
[320063298,1711127440074,-33411.31,0.00025717,2]
[320063300,1711127440086,-500.0,0.00025718,2]
[320063302,1711127440096,-1784.8,0.00025718,2]
[320063304,1711127440105,-500.0,0.00025718,2]
[320063306,1711127440115,-500.0,0.00025718,2]
[320063308,1711127440124,-500.0,0.00025718,2]
[320063310,1711127440138,-155.47423784,0.00025718,2]
[320063312,1711127440148,-500.0,0.00025718,2]
[320063314,1711127440158,-954.83,0.00025718,2]
[320063315,1711127440167,-657.21,0.00025718,2]
[320063316,1711127440177,-500.0,0.00025718,2]
[320063317,1711127440186,-500.0,0.00025718,2]
[320063318,1711127440195,-500.0,0.00025718,2]
[320063319,1711127440206,-500.0,0.00025718,2]
[320063320,1711127440217,-500.0,0.00025718,2]
[320063321,1711127440228,-500.0,0.00025718,2]
[320063322,1711127440239,-531.4265579,0.00025718,2]
[320063323,1711127440248,-500.0,0.00025718,2]
[320063324,1711127440257,-500.0,0.00025718,2]
[320063326,1711127440266,-601.06,0.00025718,2]
[320063327,1711127440275,-500.0,0.00025718,2]
[320063328,1711127440284,-500.0,0.00025718,2]
[320063329,1711127440293,-552.01,0.00025718,2]
[320063330,1711127440303,-503.0735052,0.00025718,2]
[320063331,1711127440312,-500.0,0.00025718,2]
[320063332,1711127440321,-2317.49,0.00025718,2]
[320063333,1711127440330,-500.0,0.00025718,2]
[320063334,1711127440341,-22567.43,0.00025718,2]
[320063335,1711127440350,-500.0,0.00025718,2]
[320063336,1711127440360,-500.0,0.00025718,2]
[320063337,1711127440369,-500.0,0.00025718,2]
[320063338,1711127440378,-500.0,0.00025718,2]
[320063339,1711127440387,-500.0,0.00025719,2]
[320063340,1711127440397,-500.0,0.00025719,2]
[320063341,1711127440407,-500.0,0.00025719,2]
[320063342,1711127440416,-500.0,0.00025719,2]
[320063343,1711127440425,-500.0,0.00025719,2]
[320063344,1711127440434,-500.0,0.00025719,2]
[320063345,1711127440443,-318.76703152,0.00025719,2]
[320063346,1711127440453,-500.0,0.00025719,2]
[320063347,1711127440462,-504.57,0.00025719,2]
[320063349,1711127440471,-500.0,0.00025719,2]
[320063351,1711127440483,-516.37168215,0.00025719,2]
[320063352,1711127440492,-500.0,0.00025719,2]
[320063353,1711127440501,-500.0,0.00025719,2]
[320063356,1711127440610,-500.0,0.00025719,2]
[320063357,1711127440619,-500.0,0.00025719,2]
[320063358,1711127440628,-500.0,0.00025719,2]
[320063359,1711127440638,-500.0,0.00025719,2]
[320063360,1711127440647,-500.0,0.00025719,2]
[320063361,1711127440656,-1744.07,0.00025719,2]
[320063362,1711127440665,-500.0,0.00025719,2]
[320063363,1711127440675,-841.8,0.00025719,2]
[320063364,1711127440685,-1323.11,0.00025719,2]
[320063366,1711127440694,-500.0,0.00025719,2]
[320063367,1711127440703,-594.2940873,0.00025719,2]
[320063369,1711127440712,-500.0,0.00025719,2]
[320063370,1711127440721,-500.0,0.00025719,2]
[320063371,1711127440731,-501.85256439,0.00025719,2]
[320063373,1711127440741,-500.0,0.00025719,2]
[320063375,1711127440750,-500.0,0.00025719,2]
[320063376,1711127440759,-500.0,0.00025719,2]
[320063378,1711127440768,-500.0,0.00025719,2]
[320063380,1711127440778,-872.69,0.00025719,2]
[320063381,1711127440787,-500.0,0.00025719,2]
[320063382,1711127440795,-500.0,0.00025719,2]
[320063383,1711127440804,-500.0,0.00025719,2]
[320063384,1711127440813,-500.0,0.00025719,2]
[320063385,1711127440822,-500.0,0.00025719,2]
[320063386,1711127440831,-500.0,0.00025719,2]
[320063387,1711127440843,-232.51884084,0.00025719,2]
[320063388,1711127440852,-3256.29,0.00025719,2]
[320063389,1711127440861,-500.0,0.00025719,2]
[320063390,1711127440870,-500.0,0.00025719,2]
[320063391,1711127440879,-500.0,0.00025719,2]
[320063392,1711127440888,-500.0,0.00025719,2]
[320063393,1711127440898,-500.0,0.00025719,2]
[320063394,1711127440907,-500.0,0.00025719,2]
[320063395,1711127440916,-500.0,0.00025719,2]
[320063396,1711127440925,-500.0,0.00025719,2]
[320063397,1711127440934,-500.0,0.00025719,2]
[320063398,1711127440943,-500.0,0.00025719,2]
[320063399,1711127440952,-500.0,0.00025719,2]
[320063400,1711127440961,-500.0,0.00025719,2]
[320063401,1711127440970,-500.0,0.00025719,2]
[320063402,1711127440979,-500.0,0.00025719,2]
[320063403,1711127440989,-500.0,0.00025719,2]
[320063404,1711127440998,-500.0,0.00025719,2]
[320063405,1711127441007,-500.0,0.00025719,2]
[320063406,1711127441016,-500.0,0.00025719,2]
[320063407,1711127441025,-500.0,0.00025719,2]
[320063408,1711127441034,-500.0,0.00025719,2]
[320063409,1711127441043,-500.0,0.00025719,2]
[320063410,1711127441053,-500.0,0.00025719,2]
[320063411,1711127441062,-500.0,0.00025719,2]
[320063412,1711127441071,-500.0,0.00025719,2]
[320063413,1711127441080,-500.0,0.00025719,2]
[320063414,1711127441091,-500.0,0.00025719,2]
[320063415,1711127441100,-500.0,0.00025719,2]
[320063416,1711127441109,-500.0,0.00025719,2]
[320063417,1711127441118,-500.0,0.00025719,2]
[320063418,1711127441128,-370.02171051,0.00025719,2]
[320063419,1711127441137,-500.0,0.00025719,2]
[320063420,1711127441146,-527.24,0.00025719,2]
[320063421,1711127441155,-298.13990406,0.00025719,2]
[320063422,1711127441165,-500.0,0.00025719,2]
[320063423,1711127441175,-500.0,0.00025719,2]
[320063424,1711127441184,-2204.38,0.00025719,2]
[320063425,1711127441193,-500.0,0.00025719,2]
[320063426,1711127441204,-500.0,0.00025719,2]
[320063427,1711127441212,-2099.0,0.00025719,2]
[320063428,1711127441222,-500.0,0.00025719,2]
[320063429,1711127441234,-500.0,0.00025719,2]
[320063430,1711127441245,-500.0,0.00025719,2]
[320063431,1711127441254,-500.0,0.00025719,2]
[320063432,1711127441263,-938.67,0.00025719,2]
[320063433,1711127441272,-500.0,0.00025719,2]
[320063434,1711127441281,-500.0,0.00025719,2]
[320063435,1711127441290,-500.0,0.00025719,2]
[320063436,1711127441300,-500.0,0.00025719,2]
[320063437,1711127441310,-500.0,0.00025719,2]
[320063438,1711127441320,-500.0,0.00025719,2]
[320063439,1711127441330,-500.0,0.00025719,2]
[320063440,1711127441341,-500.0,0.00025719,2]
[320063441,1711127441352,-500.0,0.00025719,2]
[320063442,1711127441361,-500.0,0.00025719,2]
[320063443,1711127441371,-500.0,0.00025719,2]
[320063444,1711127441381,-500.0,0.00025719,2]
[320063445,1711127441390,-500.0,0.00025719,2]
[320063446,1711127441401,-500.0,0.00025719,2]
[320063447,1711127441410,-188.02131333,0.00025719,2]
[320063448,1711127441420,-500.0,0.00025719,2]
[320063449,1711127441429,-1376.63187512,0.00025754,2]
[320063450,1711127441437,-1376.63187512,0.00025891,2]
[320063451,1711127441447,-466.7872142,0.00025997,2]
[320063452,1711127441456,-337.96879196,0.00025997,2]
[320063453,1711127441465,-229.62001759,0.00025998,2]
[320063454,1711127441474,-262.99728441,0.00025998,7]
[320063455,1711127441483,-500.0,0.00025998,2]
[320063456,1711127441493,-500.0,0.00025998,2]
[320063457,1711127441502,-500.0,0.00025998,2]
[320063458,1711127441511,-500.0,0.00025998,2]
[320063459,1711127441520,-500.0,0.00025998,2]
[320063460,1711127441529,-500.0,0.00025998,2]
[320063461,1711127441539,-500.0,0.00025998,2]
[320063462,1711127441549,-500.0,0.00025998,2]
[320063463,1711127441559,-500.0,0.00025998,2]
[320063464,1711127441569,-500.0,0.00025998,2]
[320063465,1711127441579,-500.0,0.00025998,2]
[320063466,1711127441591,-500.0,0.00025998,2]
[320063467,1711127441601,-500.0,0.00025999,2]
[320063468,1711127441611,-500.0,0.00025999,2]
[320063469,1711127441621,-500.0,0.00025999,2]
[320063470,1711127441630,-500.0,0.00025999,2]
[320063471,1711127441646,-500.0,0.00025999,2]
[320063472,1711127441661,-154.87609912,0.00025999,2]
[320063473,1711127441675,-427.49478328,0.00025999,2]
[320063474,1711127441687,-500.0,0.00025999,2]
[320063475,1711127441697,-643.42,0.00025999,2]
[320063476,1711127441710,-728.39,0.00025999,2]
[320063477,1711127441722,-500.0,0.00025999,2]
[320063478,1711127441736,-1109.69,0.00025999,2]
[320063479,1711127441749,-500.0,0.00025999,2]
[320063480,1711127441762,-2339.26,0.00025999,2]
[320063481,1711127441776,-500.62140895,0.00025999,2]
[320063482,1711127441786,-500.0,0.00025999,2]
[320063483,1711127441798,-1137.39,0.00025999,2]
[320063484,1711127441811,-1616.23,0.00025999,2]
[320063485,1711127441823,-1662.36,0.00025999,2]
[320063486,1711127441836,-500.0,0.00025999,2]
[320063487,1711127441851,-573.73,0.00025999,2]
[320063488,1711127441865,-500.0,0.00025999,2]
[320063489,1711127441877,-500.0,0.00025999,2]
[320063490,1711127441887,-500.0,0.00025999,2]
[320063491,1711127441899,-236.64260937,0.00025999,2]
[320063492,1711127441914,-500.0,0.00025999,2]
[320063493,1711127441926,-482.98905691,0.00025999,2]
[320063494,1711127441939,-500.0,0.00025999,2]
[320063495,1711127441951,-500.0,0.00025999,2]
[320063496,1711127441962,-500.0,0.00025999,2]
[320063497,1711127441974,-500.0,0.00025999,2]
[320063498,1711127441986,-500.0,0.00025999,2]
[320063499,1711127441999,-500.0,0.00025999,2]
[320063500,1711127442012,-500.0,0.00025999,2]
[320063501,1711127442025,-500.0,0.00025999,2]
[320063502,1711127442038,-500.0,0.00025999,2]
[320063503,1711127442050,-735.2862035,0.00026,2]
[320063504,1711127442060,-1376.63187512,0.00026028,2]
[320063505,1711127442070,-1376.63187512,0.00026165,2]
[320063506,1711127442081,-500.0,0.00026264,2]
[320063507,1711127442094,-500.0,0.00026264,2]
[320063508,1711127442106,-1575.2,0.00026264,2]
[320063509,1711127442117,-500.0,0.00026265,2]
[320063510,1711127442129,-500.0,0.00026265,2]
[320063511,1711127442140,-500.0,0.00026265,2]
[320063512,1711127442151,-500.0,0.00026265,2]
[320063513,1711127442163,-500.0,0.00026265,2]
[320063514,1711127442180,-500.0,0.00026265,2]
[320063515,1711127442191,-500.0,0.00026265,2]
[320063516,1711127442205,-500.0,0.00026265,2]
[320063517,1711127442216,-500.0,0.00026265,2]
[320063518,1711127442231,-500.0,0.00026265,2]
[320063519,1711127442242,-803.67,0.00026265,2]
[320063520,1711127442253,-581.2,0.00026265,2]
[320063521,1711127442265,-500.0,0.00026265,2]
[320063522,1711127442276,-500.0,0.00026265,2]
[320063523,1711127442287,-500.0,0.00026265,2]
[320063524,1711127442298,-500.0,0.00026265,2]
[320063525,1711127442310,-500.0,0.00026265,2]
[320063526,1711127442323,-500.0,0.00026265,2]
[320063527,1711127442334,-500.0,0.00026265,2]
[320063528,1711127442348,-500.0,0.00026265,2]
[320063529,1711127442359,-500.0,0.00026265,2]
[320063530,1711127442370,-500.0,0.00026265,2]
[320063531,1711127442382,-500.0,0.00026265,2]
[320063532,1711127442393,-1603.44,0.00026265,2]
[320063533,1711127442404,-500.0,0.00026265,2]
[320063534,1711127442415,-614.78130259,0.00026265,2]
[320063535,1711127442426,-500.0,0.00026265,2]
[320063536,1711127442437,-500.0,0.00026265,2]
[320063537,1711127442447,-210.83739809,0.00026265,2]
[320063538,1711127442459,-500.0,0.00026265,2]
[320063539,1711127442471,-500.0,0.00026265,2]
[320063540,1711127442482,-8293.87,0.00026265,2]
[320063541,1711127442493,-500.0,0.00026265,2]
[320063542,1711127442504,-500.0,0.00026265,2]
[320063543,1711127442515,-500.0,0.00026265,2]
[320063544,1711127442526,-709.52,0.00026265,2]
[320063545,1711127442537,-3279.55,0.00026265,2]
[320063546,1711127442548,-1000.0,0.00026265,2]
[320063547,1711127442559,-500.0,0.00026265,2]
[320063548,1711127442569,-500.0,0.00026265,2]
[320063549,1711127442581,-5009.74,0.00026265,2]
[320063550,1711127442594,-1471.5,0.00026265,2]
[320063551,1711127442605,-2580.71,0.00026265,2]
[320063552,1711127442616,-500.0,0.00026265,2]
[320063553,1711127442627,-4599.75,0.00026265,2]
[320063554,1711127442638,-500.0,0.00026265,2]
[320063555,1711127442650,-1878.85,0.00026265,2]
[320063556,1711127442661,-1977.53,0.00026265,2]
[320063557,1711127442673,-500.0,0.00026265,2]
[320063558,1711127442684,-845.31,0.00026265,2]
[320063559,1711127442696,-500.0,0.00026265,2]
[320063560,1711127442707,-2067.58,0.00026265,2]
[320063561,1711127442719,-20697.06,0.00026265,2]
[320063562,1711127442730,-500.0,0.00026265,2]
[320063563,1711127442742,-500.0,0.00026265,2]
[320063564,1711127442754,-500.0,0.00026265,2]
[320063565,1711127442764,-500.0,0.00026265,2]
[320063566,1711127442776,-500.0,0.00026265,2]
[320063567,1711127442787,-731.69,0.00026265,2]
[320063568,1711127442798,-1574.97,0.00026265,2]
[320063569,1711127442809,-518.74,0.00026265,2]
[320063570,1711127442820,-500.0,0.00026265,2]
[320063571,1711127442831,-500.0,0.00026265,2]
[320063572,1711127442845,-500.0,0.00026265,2]
[320063573,1711127442857,-750.63,0.00026265,2]
[320063574,1711127442868,-500.0,0.00026265,2]
[320063575,1711127442878,-743.38,0.00026265,2]
[320063578,1711127443032,-1089.16,0.00026265,2]
[320063579,1711127443048,-24132.96,0.00026265,2]
[320063580,1711127443059,-500.0,0.00026265,2]
[320063581,1711127443068,-500.0,0.00026265,2]
[320063582,1711127443078,-500.0,0.00026265,2]
[320063584,1711127443087,-4230.63,0.00026265,2]
[320063587,1711127443097,-244.70375022,0.00026265,2]
[320063589,1711127443106,-5577.93,0.00026265,2]
[320063590,1711127443115,-500.0,0.00026265,2]
[320063591,1711127443124,-500.0,0.00026265,2]
[320063593,1711127443133,-1973.23,0.00026265,2]
[320063596,1711127443142,-629.77,0.00026265,2]
[320063598,1711127443151,-500.0,0.00026265,2]
[320063599,1711127443160,-500.0,0.00026265,2]
[320063600,1711127443169,-500.0,0.00026265,2]
[320063601,1711127443179,-500.0,0.00026265,2]
[320063602,1711127443188,-500.0,0.00026265,2]
[320063603,1711127443197,-500.0,0.00026265,2]
[320063604,1711127443211,-33411.31,0.00026265,2]
[320063605,1711127443221,-500.0,0.00026266,2]
[320063607,1711127443230,-1784.8,0.00026266,2]
[320063608,1711127443239,-500.0,0.00026266,2]
[320063609,1711127443248,-500.0,0.00026266,2]
[320063610,1711127443258,-606.92371417,0.00026266,2]
[320063613,1711127443267,-500.0,0.00026266,2]
[320063616,1711127443276,-954.83,0.00026266,2]
[320063619,1711127443286,-657.21,0.00026266,2]
[320063621,1711127443295,-500.0,0.00026266,2]
[320063623,1711127443304,-500.0,0.00026266,2]
[320063625,1711127443313,-500.0,0.00026266,2]
[320063627,1711127443322,-500.0,0.00026266,2]
[320063628,1711127443331,-500.0,0.00026266,2]
[320063629,1711127443340,-500.0,0.00026266,2]
[320063630,1711127443349,-500.0,0.00026266,2]
[320063631,1711127443358,-320.95695272,0.00026266,2]
[320063632,1711127443367,-601.06,0.00026266,2]
[320063633,1711127443376,-500.0,0.00026266,2]
[320063634,1711127443385,-534.93257802,0.00026266,2]
[320063635,1711127443395,-552.01,0.00026266,2]
[320063636,1711127443404,-500.0,0.00026266,2]
[320063637,1711127443412,-2317.49,0.00026266,2]
[320063638,1711127443422,-500.0,0.00026266,2]
[320063639,1711127443431,-22567.43,0.00026266,2]
[320063640,1711127443440,-500.0,0.00026266,2]
[320063641,1711127443449,-500.0,0.00026266,2]
[320063642,1711127443458,-500.0,0.00026266,2]
[320063643,1711127443467,-500.0,0.00026266,2]
[320063644,1711127443476,-500.0,0.00026267,2]
[320063645,1711127443486,-500.0,0.00026267,2]
[320063646,1711127443495,-500.0,0.00026267,2]
[320063647,1711127443504,-500.0,0.00026267,2]
[320063648,1711127443513,-500.0,0.00026267,2]
[320063649,1711127443523,-499.8305,0.00026267,2]
[320063650,1711127443533,-500.0,0.00026267,2]
[320063651,1711127443542,-504.57,0.00026267,2]
[320063652,1711127443551,-500.0,0.00026267,2]
[320063653,1711127443561,-500.0,0.00026267,2]
[320063654,1711127443570,-500.0,0.00026267,2]
[320063655,1711127443579,-500.0,0.00026267,2]
[320063656,1711127443589,-500.0,0.00026267,2]
[320063657,1711127443598,-500.0,0.00026267,2]
[320063658,1711127443607,-500.0,0.00026267,2]
[320063659,1711127443616,-322.84238956,0.00026267,2]
[320063660,1711127443626,-1744.07,0.00026267,2]
[320063661,1711127443635,-500.0,0.00026267,2]
[320063662,1711127443644,-841.8,0.00026267,2]
[320063663,1711127443654,-1323.11,0.00026267,2]
[320063664,1711127443663,-224.7373622,0.00026267,2]
[320063665,1711127443673,-500.0,0.00026267,2]
[320063666,1711127443682,-500.0,0.00026267,2]
[320063667,1711127443692,-500.0,0.00026267,2]
[320063668,1711127443701,-500.0,0.00026267,2]
[320063669,1711127443710,-500.0,0.00026267,2]
[320063670,1711127443718,-500.0,0.00026267,2]
[320063671,1711127443728,-872.69,0.00026267,2]
[320063672,1711127443737,-500.0,0.00026267,2]
[320063673,1711127443746,-500.0,0.00026267,2]
[320063674,1711127443755,-500.0,0.00026267,2]
[320063675,1711127443764,-500.0,0.00026267,2]
[320063676,1711127443774,-500.0,0.00026267,2]
[320063677,1711127443783,-3256.29,0.00026267,2]
[320063678,1711127443792,-500.0,0.00026267,2]
[320063679,1711127443801,-500.0,0.00026267,2]
[320063680,1711127443811,-500.0,0.00026267,2]
[320063681,1711127443820,-500.0,0.00026267,2]
[320063682,1711127443829,-500.0,0.00026267,2]
[320063683,1711127443838,-500.0,0.00026267,2]
[320063684,1711127443848,-500.0,0.00026267,2]
[320063685,1711127443857,-500.0,0.00026267,2]
[320063686,1711127443866,-500.0,0.00026267,2]
[320063687,1711127443876,-500.0,0.00026267,2]
[320063688,1711127443885,-500.0,0.00026267,2]
[320063689,1711127443895,-500.0,0.00026267,2]
[320063690,1711127443904,-500.0,0.00026267,2]
[320063691,1711127443914,-500.0,0.00026267,2]
[320063692,1711127443924,-397.63473474,0.00026267,2]
[320063693,1711127443933,-500.0,0.00026267,2]
[320063694,1711127443943,-500.0,0.00026267,2]
[320063695,1711127443954,-500.0,0.00026267,2]
[320063696,1711127443963,-500.0,0.00026267,2]